Cogmind - Beta 14 @@@ ROGUE MODE // 2025.01.05 @ 18:01:36 Player: abnormality Result: Destroyed by H-61 Shepherd with Heavy Assault Cannon Performance ------------- Evolutions (2) 1000 Regions Visited (4) 800 Robots Destroyed (58) 290 Value Destroyed (1672) 1672 Prototype IDs (5) 100 Alien Tech Used (0) 0 Bonus (0) 0 TOTAL SCORE: 3862 Bonus ------- None Cogmind --------- Core Integrity 0/550 Matter 165/300 Energy 99/100 System Corruption 1% Temperature Cool (0) Movement Core (50) Location -8/Materials Parts ------- > --- POWER (2) -------- (None) > --- PROPULSION (4) --- (None) > --- UTILITY (3) ------ Seismic Detector > --- WEAPON (2) ------- (None) > --- INVENTORY (5) ---- Large Storage Unit Seismic Detector Peak State ------------ > --- POWER ------------ Heavy Ion Engine Heavy Ion Engine > --- PROPULSION ------- Aluminum Leg Aluminum Leg Improved Aluminum Leg Improved Aluminum Leg > --- UTILITY ---------- Large Storage Unit Seismic Detector Experimental Targeting Computer > --- WEAPON ----------- Particle Cannon Rocket Launcher > --- INVENTORY -------- Improved Ion Engine Aluminum Leg Aluminum Leg Seismic Detector Seismic Detector Drone Bay Light Assault Rifle Rocket Launcher [Rating: 25] Favorites ----------- Power Heavy Ion Engine Engine Heavy Ion Engine Propulsion Aluminum Leg Treads Light Treads Leg Aluminum Leg Utility Experimental Targeting Computer Device Seismic Detector Storage Small Storage Unit Processor Experimental Targeting Computer Weapon EM Pulse Gun Energy Gun EM Pulse Gun Energy Cannon Particle Cannon Ballistic Gun Light Assault Rifle Launcher Rocket Launcher Build | -11 -10 -9 -9 -8 ------- Run | Yrd Mat Mat Sto Mat Slots Evolved 4 | . . 2 . 2 Power 1 | . . . . 1 Propulsion 2 | . . 1 . 1 Utility 1 | . . 1 . . Weapon . | . . . . . Parts Attached 65 | 7 3 5 26 24 Power 7 | 1 . 1 2 3 Engine 7 | 1 . 1 2 3 Core . | . . . . . Reactor . | . . . . . Propulsion 17 | 2 . 1 8 6 Treads 2 | . . . . 2 Leg 15 | 2 . 1 8 4 Wheel . | . . . . . Hover . | . . . . . Flight . | . . . . . Utility 11 | 2 3 1 2 3 Device 6 | 1 1 1 1 2 Storage 3 | 1 1 . . 1 Processor 2 | . 1 . 1 . Hackware . | . . . . . Protection . | . . . . . Artifact . | . . . . . Weapon 30 | 2 . 2 14 12 Energy Gun 8 | 1 . . 6 1 Energy Cannon 3 | . . . . 3 Ballistic Gun 11 | 1 . 2 6 2 Ballistic Cannon . | . . . . . Launcher 8 | . . . 2 6 Special Weapon . | . . . . . Impact Weapon . | . . . . . Slashing Weapon . | . . . . . Piercing Weapon . | . . . . . Special Melee Weapon . | . . . . . Unidentified Prototypes 3 | . . . 3 . Corrupted Parts 1 | . . . . 1 System Corruption 1 | . . . . 1 Parts Lost 31 | . . 1 11 19 Power 6 | . . 1 1 4 Propulsion 11 | . . . 3 8 Utility 3 | . . . 1 2 Weapon 11 | . . . 6 5 Highest Loss Streak 5 | . . 1 4 5 To Critical Strikes . | . . . . . Average Slot Usage (%) 82 | . 100 98 92 64 Engine 12 | . 14 9 10 13 Treads 1 | . . . . 3 Leg 22 | . 28 33 28 13 Device 9 | . 14 11 9 7 Storage 8 | . 14 11 11 4 Processor 8 | . . 11 11 8 Energy Gun 7 | . 14 11 9 2 Energy Cannon 2 | . . . . 5 Ballistic Gun 7 | . 14 11 10 1 Launcher 1 | . . . . 2 Peak Build Rating 25 | 7 7 10 20 25 Average Rating 14 | 5 7 9 16 17 On Entrance 8 | . 7 7 9 20 Naked Turns . | . . . . . Heaviest Build 45 | 15 15 16 19 45 Greatest Support 46 | 20 20 30 36 46 Greatest Overweight (x) 10 | . . . 3 10 Average Overweight (x) . | . . . . . Largest Inventory Capacity 15 | 8 15 8 8 15 Average Capacity 8 | 7 8 8 8 9 Most Carried 9 | 5 8 8 8 9 Average Carried 5 | 2 5 6 6 5 Final Capacity 8 | 8 8 8 8 5 Final Carried 8 | 3 8 5 7 2 Class Distribution -------------------- 90% | Mutant 9% | Scavenger-Mutant Dominant Class ---------------- Mutant | -10/Materials Mutant | -9/Materials Mutant | -9/Storage Mutant | -8/Materials Resources | -11 -10 -9 -9 -8 ----------- Run | Yrd Mat Mat Sto Mat Matter Collected 1108 | 288 67 87 372 294 Remotely . | . . . . . Salvage Created 2088 | 121 129 210 975 653 Parts 143 | 10 11 15 63 44 Haulers Intercepted 1 | . . . 1 . Recyclers Shooed . | . . . . . Parts Field Recycled . | . . . . . Retrieved Matter . | . . . . . Parts Self-Destructed . | . . . . . Prevented . | . . . . . Kills | -11 -10 -9 -9 -8 ------- Run | Yrd Mat Mat Sto Mat Combat Hostiles Destroyed 36 | . 2 4 15 15 Guns 22 | . 2 4 14 2 Cannons 3 | . . . . 3 AOE 8 | . . . . 8 Classes Destroyed 14 | 2 4 1 4 3 Worker 2 | . 1 . . 1 Builder 5 | . . 1 1 3 Tunneler 4 | 2 . 1 . 1 Hauler 1 | . . . 1 . Recycler 3 | 1 . . 1 1 Mechanic 1 | . . . 1 . Operator 3 | . 1 1 1 . Watcher 3 | . 1 . 1 1 Swarmer 4 | . . . . 4 Grunt 18 | . 2 4 6 6 Brawler 1 | . . . . 1 Duelist 1 | . . . 1 . Sentry 10 | . . . 8 2 Specialist 2 | . . . . 2 Best Kill Streak 5 | 2 2 3 3 5 Combat Bots Only 3 | . 2 2 3 3 Max Kills in Single Turn 3 | 1 1 1 1 3 Gunslinging . | . . . . . Exploded 2 | . . . . 2 Melee . | . . . . . Uniques/NPCs Destroyed . | . . . . . Combat | -11 -10 -9 -9 -8 -------- Run | Yrd Mat Mat Sto Mat Hostile Shots Fired 288 | . 17 21 97 153 Missed 89 | . 8 5 24 52 Damage Taken 3231 | . 119 173 1124 1815 Core 808 | . 11 22 213 562 Absorbed by Shields . | . . . . . Regen/Repaired (Parts) 84 | . . . 84 . Core Remaining (%) 78 | 100 95 . 41 . Volleys Fired 180 | 6 13 17 67 77 Largest 2 | 2 2 2 2 2 Hottest 101 | 60 60 63 90 101 Shots Fired 292 | 12 26 34 115 105 Gun 230 | 12 26 34 113 45 Cannon 36 | . . . . 36 Launcher 26 | . . . 2 24 Special . | . . . . . Kinetic 119 | 6 13 17 71 12 Thermal 36 | . . . . 36 Explosive 26 | . . . 2 24 Electromagnetic 111 | 6 13 17 42 33 Robot Hit Streak 15 | 4 10 8 15 10 Robot Miss Streak 4 | 2 4 3 2 3 Penetration Max . | . . . . . Secondary Targets 1 | . 1 . . . Max Gunslinging Chain 1 | . 1 . . . Shots Hit Robots 197 | 7 15 20 88 67 Core Hits 103 | 3 8 11 45 36 Critical Kills . | . . . . . Critical Parts Destroyed . | . . . . . Critical Strikes 1 | . . . . 1 Corrupt 1 | . . . . 1 Melee Attacks . | . . . . . Impact . | . . . . . Slashing . | . . . . . Piercing . | . . . . . Sneak Attacks . | . . . . . Combat Hostiles . | . . . . . Follow-up Attacks . | . . . . . Damage Inflicted 4179 | 94 222 323 1424 2116 Guns 2396 | 94 222 303 1152 625 Cannons 413 | . . . . 413 Explosions 1365 | . . 20 272 1073 Melee . | . . . . . Ramming 5 | . . . . 5 Kinetic 977 | 37 98 126 626 90 Thermal 705 | . . 20 190 495 Explosive 1073 | . . . 82 991 Electromagnetic 1419 | 57 124 177 526 535 Impact . | . . . . . Slashing . | . . . . . Piercing . | . . . . . Highest Corruption 1 | . . . . 1 Average Corruption 1 | . . . . 1 Corruption Purged . | . . . . . Corruption Blocked . | . . . . . Effects 1 | . . . . 1 Parts Rejected 1 | . . . . 1 Overload Shots . | . . . . . Overflow Damage 52 | . . . 10 42 Projectiles . | . . . . . Explosions 52 | . . . 10 42 Melee . | . . . . . Knockbacks . | . . . . . Impact . | . . . . . Kinetic . | . . . . . Secondary . | . . . . . Self-Inflicted Damage 367 | . . . 100 267 Shots 14 | . . . 3 11 Rammed 4 | . . . . 4 Targets Rammed 4 | . . . . 4 Kicked . | . . . . . Crushed . | . . . . . Highest Temperature 507 | . 33 22 111 507 Average Temperature 77 | . 15 7 32 114 Received Heat Transfer 1077 | . 66 96 474 441 Effects 3 | . . . . 3 Shutdowns 1 | . . . . 1 Damage (minor) 1 | . . . . 1 Damage (major) 1 | . . . . 1 Siege Activations . | . . . . . Robots Corrupted 3 | . . . 1 2 Combat Hostiles 3 | . . . 1 2 Parts Fried 10 | . 2 . 3 5 Impact Corruptions . | . . . . . Robots Melted . | . . . . . Combat Hostiles . | . . . . . Parts Melted 2 | . 1 . . 1 Heat Transferred 1090 | . . 50 200 840 Parts Sabotaged . | . . . . . Parts Stolen . | . . . . . Parts Stripped . | . . . . . Power Chain Reactions 6 | . . 1 3 2 Alert | -11 -10 -9 -9 -8 ------- Run | Yrd Mat Mat Sto Mat Peak Influence 342 | 15 81 133 336 342 Initial 94 | . 9 5 55 94 Average 147 | 8 32 51 173 210 Maximum Alert Level 1 | . . . 1 1 Low Security (%) 64 | 100 100 100 58 41 Level 1 35 | . . . 41 58 Level 2 . | . . . . . Level 3 . | . . . . . Level 4 . | . . . . . Level 5 . | . . . . . High Security . | . . . . . Max Security . | . . . . . Squads Dispatched 3 | . . 1 . 2 Investigation . | . . . . . Extermination . | . . . . . Reinforcement 3 | . . 1 . 2 Assault . | . . . . . Garrison . | . . . . . Intercept . | . . . . . Searches Triggered . | . . . . . Construction Impeded . | . . . . . Haulers Reinforced . | . . . . . Active Scanning Responses . | . . . . . Cargo Convoy Interrupts . | . . . . . Stealth | -11 -10 -9 -9 -8 --------- Run | Yrd Mat Mat Sto Mat Distress Signals 8 | . . 1 3 4 Communications Jammed . | . . . . . Distress Signals . | . . . . . Times Spotted 63 | . 5 7 19 32 Peak Tracking Total 6 | . 2 3 3 6 Tactical Retreats 5 | . 1 . 1 3 Traps | -11 -10 -9 -9 -8 ------- Run | Yrd Mat Mat Sto Mat Traps Triggered 2 | . . . 2 . Indirectly . | . . . . . Trap Hack Attempts . | . . . . . Triggered . | . . . . . Disarmed . | . . . . . Reprogrammed . | . . . . . Reused . | . . . . . Traps Extracted . | . . . . . Installed . | . . . . . Triggered . | . . . . . Machines | -11 -10 -9 -9 -8 ---------- Run | Yrd Mat Mat Sto Mat Machines Disabled 6 | . . 1 2 3 Max in Single Turn 2 | . . 1 1 2 Machines Repaired . | . . . . . Machines Dismantled . | . . . . . Machines Sabotaged . | . . . . . Overloaded Fab Kills . | . . . . . Hacking | -11 -10 -9 -9 -8 --------- Run | Yrd Mat Mat Sto Mat Machines Accessed 8 | . 1 . 6 1 Terminals 7 | . 1 . 5 1 Fabricators . | . . . . . Repair Stations 1 | . . . 1 . Recycling Units . | . . . . . Scanalyzers . | . . . . . Garrison Access . | . . . . . Total Hacks 15 | . 1 . 13 1 Successful 11 | . 1 . 9 1 Failed 4 | . . . 4 . Catastrophic 2 | . . . 2 . Database Lockouts . | . . . . . Manual . | . . . . . Terminals 13 | . 1 . 11 1 Fabricators . | . . . . . Repair Stations 2 | . . . 2 . Recycling Units . | . . . . . Scanalyzers . | . . . . . Garrison Access . | . . . . . Terminal Hacks 9 | . 1 . 7 1 Record 2 | . . . 2 . Prototype ID Bank 1 | . 1 . . . Open Door 3 | . . . 3 . Dispatch Records 1 | . . . 1 . Security Status 1 | . . . . 1 Investigation Status 1 | . . . 1 . Fabricator Hacks . | . . . . . Repair Station Hacks 2 | . . . 2 . Scan Component 1 | . . . 1 . Repair 1 | . . . 1 . Recycling Unit Hacks . | . . . . . Scanalyzer . | . . . . . Garrison Access Hacks . | . . . . . Unauthorized Hacks . | . . . . . Terminals . | . . . . . Fabricators . | . . . . . Repair Stations . | . . . . . Recycling Units . | . . . . . Scanalyzers . | . . . . . Garrison Access . | . . . . . Data Cores Recovered 1 | . 1 . . . Used . | . . . . . Hacking Detections 2 | . . . 2 . Full Trace Events 1 | . . . 1 . Feedback Events . | . . . . . Feedback Blocked . | . . . . . Robot Schematics Acquired . | . . . . . Robots Built . | . . . . . Authchips . | . . . . . Time . | . . . . . Total Robot Build Rating . | . . . . . Part Schematics Acquired . | . . . . . Parts Built . | . . . . . Authchips . | . . . . . Time . | . . . . . Total Part Build Rating . | . . . . . Parts Repaired 1 | . . . 1 . Time 26 | . . . 26 . Parts Recycled . | . . . . . Recycled Matter . | . . . . . Retrieved Matter . | . . . . . Retrieved Components . | . . . . . Parts Scanalyzed . | . . . . . Part Schematics Acquired . | . . . . . Parts Damaged . | . . . . . Bothacking | -11 -10 -9 -9 -8 ------------ Run | Yrd Mat Mat Sto Mat Used RIF Installer . | . . . . . Robots Hacked . | . . . . . Non-combat . | . . . . . Combat . | . . . . . Robot Hacks Applied . | . . . . . Relay Couplers Released . | . . . . . Fabnet Peak Effective % . | . . . . . Robots Rewired . | . . . . . Allies Hacked . | . . . . . Hacks Repelled . | . . . . . Allies | -11 -10 -9 -9 -8 -------- Run | Yrd Mat Mat Sto Mat Total Allies . | . . . . . Largest Group . | . . . . . Highest-Rated Group . | . . . . . Highest-Rated Ally . | . . . . . Total Orders . | . . . . . Ally Attacks . | . . . . . Total Damage . | . . . . . Kills . | . . . . . Allies Corrupted . | . . . . . Allies Melted . | . . . . . Intel | -11 -10 -9 -9 -8 ------- Run | Yrd Mat Mat Sto Mat Robot Analysis Total . | . . . . . Derelict Logs Recovered . | . . . . . Drone Launches 2 | . . . . 2 Drone Recoveries 2 | . . . . 2 Exploration | -11 -10 -9 -9 -8 ------------- Run | Yrd Mat Mat Sto Mat Turns Passed 3044 | 104 493 314 904 1229 Spaces Moved 1571 | 66 323 194 455 533 Core 58 | 14 . . 9 35 Treads 114 | . . . . 114 Legs 1399 | 52 323 194 446 384 Wheels . | . . . . . Hover . | . . . . . Flight . | . . . . . Fastest Speed 50 | 50 120 120 120 50 Average Speed 139 | 105 120 120 122 175 Slowest Speed 550 | 120 120 120 200 550 Overloaded Moves . | . . . . . Propulsion Burnouts . | . . . . . Robots Hopped . | . . . . . Cave-ins Triggered . | . . . . . Exploration Rate (%) 31 | 5 45 12 59 38 Regions Visited 4 Branch Regions 1 Pre-discovered Areas . | . . . . . Known Exits Taken 2 | . 1 1 . . Unknown Exits Taken 2 | 1 . . 1 . Scrap Searched . | . . . . . Spaces Dug . | . . . . . Terrain Destroyed 214 | . . 3 27 184 Melee . | . . . . . Projectile 4 | . . . . 4 AOE 210 | . . 3 27 180 Terrain Rammed . | . . . . . Walls Destroyed . | . . . . . Machines Disabled . | . . . . . Actions | -11 -10 -9 -9 -8 --------- Run | Yrd Mat Mat Sto Mat Total 2139 | 88 401 242 691 717 Wait 261 | . 58 19 119 65 Move 1567 | 65 322 193 454 533 Hop . | . . . . . Pick Up 49 | 10 5 4 21 9 Fast Attach . | . . . . . Attach 39 | 7 . 3 14 15 Detach 3 | . . . . 3 Swap 26 | . 3 2 12 9 Drop 10 | . . 4 4 2 Fire 180 | 6 13 17 67 77 Melee . | . . . . . Ram 4 | . . . . 4 Kick . | . . . . . Crush . | . . . . . Escape Stasis . | . . . . . Rewire . | . . . . . Trap . | . . . . . Miscellaneous . | . . . . . Route ------- -11/Scrapyard -10/Materials (discovered 2 exits: *Mat / [*Min]) -9/Materials -9/Storage -8/Materials History --------- Turn | Location | Event 6 | -11/Scrapyard | Discovered new exit (range 16) 105 | -11/Scrapyard | Entered Materials 256 | -10/Materials | Discovered new exit (range 11) 291 | -10/Materials | Discovered new exit (range 15) 324 | -10/Materials | Build established: Mutant 596 | -10/Materials | Identified exit to Materials 598 | -10/Materials | Entered another Materials area 598 | -9/Materials | Evolved 2 slots: Propulsion x1, Utility x1 600 | -9/Materials | Discovered new exit (range 10) 911 | -9/Materials | Identified exit to Storage 912 | -9/Materials | Entered Storage 974 | -9/Storage | Found Prototype Processor 975 | -9/Storage | Identified Exp. Targeting Computer 1131 | -9/Storage | Repaired Aluminum Leg 1481 | -9/Storage | Lost 4 parts (2n1u1w) 1528 | -9/Storage | Core integrity fell below 50% 1793 | -9/Storage | Discovered new exit (range 16) 1816 | -9/Storage | Entered Materials 1816 | -8/Materials | Evolved 2 slots: Power x1, Propulsion x1 2268 | -8/Materials | Lost 5 parts (1p3n1w) 2957 | -8/Materials | Core integrity fell below 50% 3019 | -8/Materials | Lost 5 parts (2p1n2w) 3037 | -8/Materials | Core integrity fell below 20% 3045 | -8/Materials | Destroyed by H-61 Shepherd with Heavy Assault Cannon Last Messages --------------- 02988_ Rocket Launcher destroyed. 02988_ Lgt. Treads destroyed. 02996_ R-06 Scavenger collects Hrd. Medium Armor Plating. 03001_ R-06 Scavenger collects Corrupted Shotgun. 03021_ Drone released from Drone Bay. 03025_ Drone retrieved by Drone Bay. 03026_ Lgt. Treads destroyed. 03029_ Critical hit (Burn: +37). 03032_ Drone retrieved by Drone Bay. 03036_ Slammed into Y-45 Defender. 03036_ Exp. Targeting Computer destroyed. 03036_ Critical hit (Blast). 03037_ Slammed into H-61 Shepherd. 03038_ H-61 Shepherd calls for reinforcements. 03038_ ALERT: Hostile activity reported, dispatching reinforcements to area. 03039_ Slammed into H-61 Shepherd. 03040_ K-01 Serf collects debris. 03041_ Critical hit (Burn: +37). 03044_ System corrupted: Drone Bay rejected. Map ----- +----------------------------------------------------+ | ??????????????# !/ # ! #???????? | | ??????????????#! # ######### #???????? | | ??????????????######+#### #+######??# #???????? | | ?????????????#####?# # #??# #???????? | | ?????????????# """ # # """ #??# #???????? | | ?????????????# """ # % # """ "#??# +???????? | | ???#?????????? """ " + """ T#??# #???????? | | ? #?????????# # % # "#??# #???????? | | #?????????# /# "#"" ## #??# #???????? | | #?????????# ?# #### #########??# #???????? | | #????###### *?# #??# ############ ######### | | ###### ######## #??# # # # | | #??# # # # "" | | #+####### ##########??# # # # ""S | | ????????## ########?????# # * # "" """ | | ?????????# # #?????# k % [ % + """ | | ?????????# + #?????# % """ | | ?????????# # #?????# " # | | ?????????# # #?????# ####### =% # | | ?????????# # #?????# #?????# * ######## | | ?????????# # #?????# #?????# #??????? | | ?????????# ########?????# #?????# ##??????? | | ?????????# #??????# #?????# # """??????? | | ???????### ## ########H##???# # "T"??????? | | ???????# ## # ##; ;##### ] # ??????? | | ???????#!![[!!## # ##!@ % +? ??????? | | ???????#!! [!!## # ###/#;#### #? ?????? | | #?############## # ## Y #??# #?? ! ?????? | | ### #????????# + ## #???## ###???##??????? | | #????????# # ## #?????/??????????????? | | ### #?????#### # ## #????? ??????????????? | | #?## ##?????# + ## #????? ??????????????? | | #??# #??????# #### ## #????????????????????? | | #??# ######## #??####### #????????????????????? | | #??# #????????######????????????????????? | | #?#####+#####+########???????????????????????????? | | #?# # #???????????????????????????? | | #?# # #???????????????????????????? | | ?+ # = #???????????????????????????? | | ### # #???????????????????????????? | | ??####################???????????????????????????? | | ?????????????????????????????????????????????????? | | ?????????????????????????????????????????????????? | | ?????????????????????????????????????????????????? | | ?????????????????????????????????????????????????? | | ?????????????????????????????????????????????????? | | ?????????????????????????????????????????????????? | | ?????????????????????????????????????????????????? | | ?????????????????????????????????????????????????? | | ?????????????????????????????????????????????????? | +----------------------------------------------------+ Best States ------------- Heat Dissipation 31 Energy Generation 23 Energy Capacity 460 Matter Stores 300 Matter Capacity 300 Sight Range 16 Robot Scan Range 14 Terrain Scan Density 10 Evasion (%) 55 Targeting Accuracy 12 Recoil Reduction 1 Item Schematics ----------------- None Robot Schematics ------------------ None Fabricated ------------ Nothing Alien Tech Used ----------------- None Achievements -------------- None Challenges ------------ None Game ------ Seed WeldingDirtyLegs Manual? 0 Play Time 00:26:11 Cumulative 14.4 hours Start 2025.01.05 @ 17:35:13 End 2025.01.05 @ 18:01:36 Sessions 3 Manual Loads 0 Difficulty Rogue Special Mode None Game No. 69 Rogue 69 Adventurer 0 Explorer 0 Win Type - Total 0 Types 0/0/0/0/0/0/0/0/0 Lore% 16 Gallery% 17 Achievement% 21 Wizard Run 0 Options --------- Layout 0 ASCII 0 Keyboard 0 Movement Mouse Keybinds 0 Fullscreen 1 Font 18/SmallcapsGlow Map View 38x25 Zoom Use 99% Tactical HUD 1 Map Filters NONE Filters NONE Steam 1 RUN: cfd76b2d-908e-407c-a114-d1aefb96e3b8